[Event "Titled Tuesday Blitz October 18 Late 2022"]
[White "Malka, Samuel"]
[Black "Gunduz, Umut Erdem"]
[WhiteFideId "20643675"]
[BlackFideId "6381383"]
[WhiteElo "2473"]
[BlackElo "2693"]
[Result "0-1"]
[Round "03"]
[TimeControl "180+1"]
[Date "2022.10.19"]
[WhiteClock "0:00:15"]
[BlackClock "0:01:39"]

1. d4 {[%clk 0:03:00]}  Nf6 {[%clk 0:02:59]} 2. c4 {[%clk 0:02:55]}  c5 {[%clk 0:03:00]} 3. d5 {[%clk 0:02:55]}  e6 {[%clk 0:03:01]} 4. Nc3 {[%clk 0:02:54]}  exd5 {[%clk 0:03:01]} 5. cxd5 {[%clk 0:02:55]}  d6 {[%clk 0:03:02]} 6. Nf3 {[%clk 0:02:49]}  g6 {[%clk 0:03:02]} 7. g3 {[%clk 0:02:49]}  Bg7 {[%clk 0:03:02]} 8. Bg2 {[%clk 0:02:50]}  O-O {[%clk 0:03:03]} 9. O-O {[%clk 0:02:50]}  a6 {[%clk 0:03:03]} 10. a4 {[%clk 0:02:50]}  Nbd7 {[%clk 0:03:04]} 11. Bf4 {[%clk 0:02:48]}  Ne8 {[%clk 0:03:02]} 12. Qd2 {[%clk 0:02:39]}  Qe7 {[%clk 0:03:01]} 13. Bh6 {[%clk 0:02:38]}  Nc7 {[%clk 0:02:56]} 14. Bxg7 {[%clk 0:02:32]}  Kxg7 {[%clk 0:02:57]} 15. Rfe1 {[%clk 0:02:22]}  Ne5 {[%clk 0:02:50]} 16. e4 {[%clk 0:02:08]}  Nxf3+ {[%clk 0:02:41]} 17. Bxf3 {[%clk 0:02:09]}  f6 {[%clk 0:02:37]} 18. Be2 {[%clk 0:02:00]}  Bd7 {[%clk 0:02:34]} 19. a5 {[%clk 0:01:56]}  Nb5 {[%clk 0:02:33]} 20. Bxb5 {[%clk 0:01:53]}  axb5 {[%clk 0:02:31]} 21. b4 {[%clk 0:01:34]}  cxb4 {[%clk 0:02:25]} 22. Ne2 {[%clk 0:01:23]}  Qxe4 {[%clk 0:02:17]} 23. Nf4 {[%clk 0:01:23]}  Qf3 {[%clk 0:02:15]} 24. Re7+ {[%clk 0:01:13]}  Rf7 {[%clk 0:02:13]} 25. Rxf7+ {[%clk 0:00:39]}  Kxf7 {[%clk 0:02:13]} 26. Qxb4 {[%clk 0:00:38]}  Bf5 {[%clk 0:01:53]} 27. Qxd6 {[%clk 0:00:36]}  Be4 {[%clk 0:01:46]} 28. Kf1 {[%clk 0:00:17]}  Qh1+ {[%clk 0:01:40]} 29. Ke2 {[%clk 0:00:15]}  Bf3+ {[%clk 0:01:40]} 30. Ke3 {[%clk 0:00:15]}  Re8+ {[%clk 0:01:41]} 31. Kd4 {[%clk 0:00:15]}  Qxa1+ {[%clk 0:01:39]} 0-1


[Site "https://www.chess.com"]

[Event "Titled Tuesday Blitz October 18 Late 2022"]
[White "Manukian, Artak"]
[Black "Zou, Chen"]
[WhiteFideId "13301373"]
[BlackFideId "8610959"]
[WhiteElo "2473"]
[BlackElo "2695"]
[Result "0-1"]
[Round "03"]
[TimeControl "180+1"]
[Date "2022.10.19"]
[WhiteClock "0:01:12"]
[BlackClock "0:00:22"]

1. e4 {[%clk 0:03:00]}  c5 {[%clk 0:02:59]} 2. Nf3 {[%clk 0:03:01]}  d6 {[%clk 0:02:59]} 3. Bb5+ {[%clk 0:03:00]}  Nd7 {[%clk 0:02:59]} 4. O-O {[%clk 0:03:00]}  a6 {[%clk 0:02:59]} 5. Bd3 {[%clk 0:02:59]}  Ngf6 {[%clk 0:02:58]} 6. c4 {[%clk 0:02:57]}  Ne5 {[%clk 0:02:53]} 7. Nxe5 {[%clk 0:02:45]}  dxe5 {[%clk 0:02:54]} 8. Bc2 {[%clk 0:02:46]}  g6 {[%clk 0:02:53]} 9. Nc3 {[%clk 0:02:45]}  Bg7 {[%clk 0:02:53]} 10. d3 {[%clk 0:02:42]}  O-O {[%clk 0:02:53]} 11. Be3 {[%clk 0:02:42]}  Nd7 {[%clk 0:02:52]} 12. a4 {[%clk 0:02:40]}  f5 {[%clk 0:02:41]} 13. f3 {[%clk 0:02:39]}  f4 {[%clk 0:02:39]} 14. Bf2 {[%clk 0:02:38]}  g5 {[%clk 0:02:40]} 15. a5 {[%clk 0:02:33]}  h5 {[%clk 0:02:37]} 16. h3 {[%clk 0:02:26]}  Rf6 {[%clk 0:02:31]} 17. Nd5 {[%clk 0:02:23]}  Rg6 {[%clk 0:02:29]} 18. Ba4 {[%clk 0:02:09]}  g4 {[%clk 0:02:28]} 19. hxg4 {[%clk 0:01:58]}  hxg4 {[%clk 0:02:28]} 20. Bxd7 {[%clk 0:01:57]}  Bxd7 {[%clk 0:02:23]} 21. Bxc5 {[%clk 0:01:55]}  Bf6 {[%clk 0:02:17]} 22. d4 {[%clk 0:01:50]}  g3 {[%clk 0:01:14]} 23. Nb6 {[%clk 0:01:43]}  Rh6 {[%clk 0:00:27]} 24. dxe5 {[%clk 0:01:30]}  Kf7 {[%clk 0:00:27]} 25. Qd5+ {[%clk 0:01:14]}  e6 {[%clk 0:00:22]} 26. Qxd7+ {[%clk 0:01:11]}  Qxd7 {[%clk 0:00:22]} 27. Nxd7 {[%clk 0:01:12]}  Rah8 {[%clk 0:00:22]} 0-1


[Site "https://www.chess.com"]

[Event "Titled Tuesday Blitz October 18 Late 2022"]
[White "Martin Carmona, Gaston Manuel"]
[Black "Bjelobrk, Igor"]
[WhiteFideId "22284567"]
[BlackFideId "4300726"]
[WhiteElo "2235"]
[BlackElo "2335"]
[Result "0-1"]
[Round "03"]
[TimeControl "180+1"]
[Date "2022.10.19"]
[WhiteClock "0:00:03"]
[BlackClock "0:01:00"]

1. d4 {[%clk 0:02:59]}  d5 {[%clk 0:02:58]} 2. c4 {[%clk 0:02:57]}  c6 {[%clk 0:02:58]} 3. Nc3 {[%clk 0:02:56]}  Nf6 {[%clk 0:02:58]} 4. e3 {[%clk 0:02:57]}  g6 {[%clk 0:02:53]} 5. Nf3 {[%clk 0:02:57]}  Bg7 {[%clk 0:02:53]} 6. Be2 {[%clk 0:02:58]}  O-O {[%clk 0:02:52]} 7. O-O {[%clk 0:02:59]}  dxc4 {[%clk 0:02:52]} 8. Bxc4 {[%clk 0:02:59]}  Bg4 {[%clk 0:02:51]} 9. h3 {[%clk 0:02:57]}  Bxf3 {[%clk 0:02:50]} 10. Qxf3 {[%clk 0:02:58]}  Nbd7 {[%clk 0:02:50]} 11. Rd1 {[%clk 0:02:59]}  e5 {[%clk 0:02:40]} 12. d5 {[%clk 0:02:59]}  e4 {[%clk 0:02:36]} 13. Qe2 {[%clk 0:02:55]}  cxd5 {[%clk 0:02:34]} 14. Nxd5 {[%clk 0:02:53]}  Ne5 {[%clk 0:02:34]} 15. Nxf6+ {[%clk 0:02:42]}  Qxf6 {[%clk 0:02:33]} 16. Bd5 {[%clk 0:02:41]}  Qf5 {[%clk 0:02:33]} 17. Bxb7 {[%clk 0:02:35]}  Rad8 {[%clk 0:02:29]} 18. Bd2 {[%clk 0:01:36]}  Rb8 {[%clk 0:02:22]} 19. Ba6 {[%clk 0:00:50]}  Rxb2 {[%clk 0:02:20]} 20. Rdb1 {[%clk 0:00:34]}  Nf3+ {[%clk 0:01:50]} 21. gxf3 {[%clk 0:00:23]}  exf3 {[%clk 0:01:50]} 22. Qd1 {[%clk 0:00:17]}  Qxh3 {[%clk 0:01:17]} 23. Bf1 {[%clk 0:00:05]}  Qg4+ {[%clk 0:01:17]} 24. Kh1 {[%clk 0:00:05]}  Be5 {[%clk 0:01:05]} 25. Qxf3 {[%clk 0:00:02]}  Qxf3+ {[%clk 0:01:03]} 26. Bg2 {[%clk 0:00:03]}  Qh5+ {[%clk 0:01:01]} 27. Kg1 {[%clk 0:00:03]}  Rxd2 {[%clk 0:01:00]} 0-1


[Site "https://www.chess.com"]

[Event "Titled Tuesday Blitz October 18 Late 2022"]
[White "Martinez Reyes, Pedro Ramon"]
[Black "Goncalves, Davi Sulzbacher"]
[WhiteFideId "3901807"]
[BlackFideId "2154510"]
[WhiteElo "2354"]
[BlackElo "2182"]
[Result "0-1"]
[Round "03"]
[TimeControl "180+1"]
[Date "2022.10.19"]
[WhiteClock "0:00:13"]
[BlackClock "0:00:12"]

1. Nf3 {[%clk 0:03:00]}  c5 {[%clk 0:02:59]} 2. e3 {[%clk 0:03:01]}  d5 {[%clk 0:02:59]} 3. b3 {[%clk 0:03:01]}  f6 {[%clk 0:02:58]} 4. Nc3 {[%clk 0:02:59]}  e5 {[%clk 0:02:57]} 5. e4 {[%clk 0:02:59]}  d4 {[%clk 0:02:57]} 6. Nd5 {[%clk 0:02:59]}  Ne7 {[%clk 0:02:55]} 7. Bc4 {[%clk 0:03:00]}  Nbc6 {[%clk 0:02:51]} 8. O-O {[%clk 0:02:58]}  Qd6 {[%clk 0:02:35]} 9. c3 {[%clk 0:02:47]}  Be6 {[%clk 0:02:33]} 10. Ba3 {[%clk 0:02:44]}  Nxd5 {[%clk 0:02:29]} 11. exd5 {[%clk 0:02:45]}  Bxd5 {[%clk 0:02:29]} 12. cxd4 {[%clk 0:02:40]}  Bxc4 {[%clk 0:01:51]} 13. dxe5 {[%clk 0:02:33]}  Qd3 {[%clk 0:01:45]} 14. Re1 {[%clk 0:02:29]}  Bd5 {[%clk 0:01:23]} 15. exf6+ {[%clk 0:02:24]}  Kd7 {[%clk 0:01:19]} 16. Ng5 {[%clk 0:02:07]}  gxf6 {[%clk 0:01:08]} 17. Qg4+ {[%clk 0:02:06]}  f5 {[%clk 0:00:57]} 18. Qh5 {[%clk 0:01:54]}  Qd4 {[%clk 0:00:39]} 19. Rab1 {[%clk 0:01:48]}  Qg4 {[%clk 0:00:34]} 20. Qxg4 {[%clk 0:01:39]}  fxg4 {[%clk 0:00:35]} 21. Bb2 {[%clk 0:01:40]}  Rg8 {[%clk 0:00:33]} 22. Nxh7 {[%clk 0:01:40]}  Be7 {[%clk 0:00:33]} 23. Bf6 {[%clk 0:01:31]}  Rg6 {[%clk 0:00:28]} 24. Bxe7 {[%clk 0:01:24]}  Nxe7 {[%clk 0:00:29]} 25. Re5 {[%clk 0:01:24]}  Rh8 {[%clk 0:00:29]} 26. Rbe1 {[%clk 0:01:24]}  Rxh7 {[%clk 0:00:29]} 27. d4 {[%clk 0:01:14]}  c4 {[%clk 0:00:27]} 28. bxc4 {[%clk 0:01:13]}  Bxc4 {[%clk 0:00:27]} 29. Rc5 {[%clk 0:01:13]}  b5 {[%clk 0:00:27]} 30. a4 {[%clk 0:01:11]}  Rc6 {[%clk 0:00:25]} 31. Rce5 {[%clk 0:01:04]}  bxa4 {[%clk 0:00:25]} 32. Ra5 {[%clk 0:01:04]}  a6 {[%clk 0:00:21]} 33. Rxa4 {[%clk 0:01:00]}  Bb5 {[%clk 0:00:21]} 34. Ra3 {[%clk 0:01:01]}  Nd5 {[%clk 0:00:21]} 35. f3 {[%clk 0:00:58]}  gxf3 {[%clk 0:00:19]} 36. Rxf3 {[%clk 0:00:59]}  Rf6 {[%clk 0:00:19]} 37. Rg3 {[%clk 0:00:57]}  Re7 {[%clk 0:00:19]} 38. Rc1 {[%clk 0:00:55]}  Ref7 {[%clk 0:00:19]} 39. h4 {[%clk 0:00:52]}  Rf1+ {[%clk 0:00:20]} 40. Rxf1 {[%clk 0:00:52]}  Rxf1+ {[%clk 0:00:21]} 41. Kh2 {[%clk 0:00:52]}  a5 {[%clk 0:00:20]} 42. Rg5 {[%clk 0:00:52]}  Bc6 {[%clk 0:00:19]} 43. h5 {[%clk 0:00:52]}  a4 {[%clk 0:00:19]} 44. h6 {[%clk 0:00:52]}  Nf6 {[%clk 0:00:18]} 45. Ra5 {[%clk 0:00:40]}  Ng4+ {[%clk 0:00:16]} 46. Kg3 {[%clk 0:00:40]}  Nxh6 {[%clk 0:00:17]} 47. d5 {[%clk 0:00:39]}  Bxd5 {[%clk 0:00:15]} 48. Rxd5+ {[%clk 0:00:39]}  Kc6 {[%clk 0:00:15]} 49. Ra5 {[%clk 0:00:39]}  Nf5+ {[%clk 0:00:14]} 50. Kh3 {[%clk 0:00:35]}  Rf4 {[%clk 0:00:13]} 51. g3 {[%clk 0:00:32]}  Rf3 {[%clk 0:00:10]} 52. Kg4 {[%clk 0:00:31]}  Rxg3+ {[%clk 0:00:10]} 53. Kxf5 {[%clk 0:00:30]}  a3 {[%clk 0:00:10]} 54. Ke4 {[%clk 0:00:27]}  Kb6 {[%clk 0:00:11]} 55. Ra8 {[%clk 0:00:26]}  Kb5 {[%clk 0:00:11]} 56. Kd4 {[%clk 0:00:26]}  Kb4 {[%clk 0:00:11]} 57. Rb8+ {[%clk 0:00:27]}  Ka4 {[%clk 0:00:12]} 58. Ra8+ {[%clk 0:00:27]}  Kb3 {[%clk 0:00:12]} 59. Rb8+ {[%clk 0:00:27]}  Kc2 {[%clk 0:00:12]} 60. Ra8 {[%clk 0:00:26]}  Kb2 {[%clk 0:00:13]} 61. Rb8+ {[%clk 0:00:26]}  Rb3 {[%clk 0:00:13]} 62. Rh8 {[%clk 0:00:20]}  a2 {[%clk 0:00:13]} 63. Rh2+ {[%clk 0:00:17]}  Ka3 {[%clk 0:00:13]} 64. Rh1 {[%clk 0:00:16]}  Rb1 {[%clk 0:00:11]} 65. Rh3+ {[%clk 0:00:16]}  Kb4 {[%clk 0:00:11]} 66. Rh8 {[%clk 0:00:13]}  a1=Q+ {[%clk 0:00:11]} 67. Kd5 {[%clk 0:00:13]}  Qxh8 {[%clk 0:00:12]} 0-1


[Site "https://www.chess.com"]

[Event "Titled Tuesday Blitz October 18 Late 2022"]
[White "Matinian, Nikita"]
[Black "Holt, Conrad"]
[WhiteFideId "24129100"]
[BlackFideId "2034387"]
[WhiteElo "2422"]
[BlackElo "2592"]
[Result "0-1"]
[Round "03"]
[TimeControl "180+1"]
[Date "2022.10.18"]
[WhiteClock "0:00:02"]
[BlackClock "0:00:21"]

1. e4 {[%clk 0:03:00]}  e6 {[%clk 0:02:59]} 2. d4 {[%clk 0:03:01]}  d5 {[%clk 0:02:58]} 3. Nc3 {[%clk 0:03:02]}  Nf6 {[%clk 0:02:57]} 4. Bg5 {[%clk 0:02:59]}  dxe4 {[%clk 0:02:57]} 5. Nxe4 {[%clk 0:03:00]}  Be7 {[%clk 0:02:57]} 6. Bxf6 {[%clk 0:03:00]}  Bxf6 {[%clk 0:02:58]} 7. Nf3 {[%clk 0:03:01]}  Nd7 {[%clk 0:02:59]} 8. Qd2 {[%clk 0:02:57]}  Be7 {[%clk 0:02:56]} 9. O-O-O {[%clk 0:02:57]}  O-O {[%clk 0:02:56]} 10. h4 {[%clk 0:02:56]}  b6 {[%clk 0:02:54]} 11. Bd3 {[%clk 0:02:56]}  Bb7 {[%clk 0:02:54]} 12. Kb1 {[%clk 0:02:55]}  c5 {[%clk 0:02:53]} 13. Qf4 {[%clk 0:02:42]}  Qb8 {[%clk 0:02:52]} 14. Qe3 {[%clk 0:02:10]}  cxd4 {[%clk 0:02:40]} 15. Nxd4 {[%clk 0:02:11]}  Ne5 {[%clk 0:02:40]} 16. Ng5 {[%clk 0:02:07]}  h6 {[%clk 0:02:40]} 17. Bh7+ {[%clk 0:01:54]}  Kh8 {[%clk 0:02:40]} 18. f4 {[%clk 0:01:54]}  Ng4 {[%clk 0:02:34]} 19. Qg3 {[%clk 0:01:46]}  Nf6 {[%clk 0:02:25]} 20. Bd3 {[%clk 0:01:39]}  Nh5 {[%clk 0:02:17]} 21. Nxf7+ {[%clk 0:01:32]}  Rxf7 {[%clk 0:02:17]} 22. Qg6 {[%clk 0:01:32]}  Qg8 {[%clk 0:02:16]} 23. Qxh5 {[%clk 0:01:21]}  Rxf4 {[%clk 0:02:16]} 24. Qe5 {[%clk 0:01:13]}  Qf7 {[%clk 0:01:53]} 25. Nxe6 {[%clk 0:01:08]}  Rxh4 {[%clk 0:01:51]} 26. Rxh4 {[%clk 0:01:01]}  Bxh4 {[%clk 0:01:51]} 27. Rh1 {[%clk 0:00:47]}  Re8 {[%clk 0:01:49]} 28. Rxh4 {[%clk 0:00:43]}  Rxe6 {[%clk 0:01:48]} 29. Qg3 {[%clk 0:00:25]}  Bxg2 {[%clk 0:01:31]} 30. b3 {[%clk 0:00:21]}  Bd5 {[%clk 0:01:24]} 31. Rf4 {[%clk 0:00:18]}  Qe7 {[%clk 0:01:17]} 32. Qf2 {[%clk 0:00:14]}  Rf6 {[%clk 0:01:08]} 33. a4 {[%clk 0:00:12]}  Qe5 {[%clk 0:01:01]} 34. Rxf6 {[%clk 0:00:11]}  Qxf6 {[%clk 0:01:01]} 35. Qg3 {[%clk 0:00:12]}  Qd8 {[%clk 0:00:54]} 36. Qg6 {[%clk 0:00:11]}  Bg8 {[%clk 0:00:54]} 37. Ka2 {[%clk 0:00:05]}  Qd7 {[%clk 0:00:49]} 38. Qg3 {[%clk 0:00:03]}  Qxa4+ {[%clk 0:00:48]} 39. Kb1 {[%clk 0:00:03]}  Qe8 {[%clk 0:00:45]} 40. Qd6 {[%clk 0:00:02]}  Bf7 {[%clk 0:00:39]} 41. Qc7 {[%clk 0:00:01]}  Bg6 {[%clk 0:00:20]} 42. Qxa7 {[%clk 0:00:01]}  Bxd3 {[%clk 0:00:19]} 43. cxd3 {[%clk 0:00:02]}  Qb5 {[%clk 0:00:18]} 44. Qb8+ {[%clk 0:00:02]}  Kh7 {[%clk 0:00:18]} 45. Kc2 {[%clk 0:00:03]}  Qc5+ {[%clk 0:00:19]} 46. Kd2 {[%clk 0:00:03]}  Qf2+ {[%clk 0:00:17]} 47. Kc3 {[%clk 0:00:03]}  Qc5+ {[%clk 0:00:18]} 48. Kd2 {[%clk 0:00:03]}  h5 {[%clk 0:00:18]} 49. Qf4 {[%clk 0:00:03]}  Kg6 {[%clk 0:00:19]} 50. Qe4+ {[%clk 0:00:03]}  Kh6 {[%clk 0:00:19]} 51. b4 {[%clk 0:00:02]}  Qg5+ {[%clk 0:00:19]} 52. Kc3 {[%clk 0:00:03]}  h4 {[%clk 0:00:19]} 53. Qe2 {[%clk 0:00:01]}  Qf6+ {[%clk 0:00:19]} 54. d4 {[%clk 0:00:02]}  g5 {[%clk 0:00:20]} 55. Qe4 {[%clk 0:00:02]}  Kh5 {[%clk 0:00:20]} 56. Qh7+ {[%clk 0:00:02]}  Kg4 {[%clk 0:00:21]} 57. Kc4 {[%clk 0:00:02]}  h3 {[%clk 0:00:21]} 58. d5 {[%clk 0:00:02]}  Kg3 {[%clk 0:00:20]} 59. Kb5 {[%clk 0:00:03]}  h2 {[%clk 0:00:20]} 60. Qh5 {[%clk 0:00:02]}  g4 {[%clk 0:00:20]} 61. Ka6 {[%clk 0:00:01]}  Qf1+ {[%clk 0:00:20]} 62. b5 {[%clk 0:00:01]}  h1=Q {[%clk 0:00:21]} 63. Kxb6 {[%clk 0:00:02]}  Qxh5 {[%clk 0:00:21]} 0-1


[Site "https://www.chess.com"]

[Event "Titled Tuesday Blitz October 18 Late 2022"]
[White "Mihajlov, Sebastian"]
[Black "Koutlas, Nikolaos"]
[WhiteFideId "1512110"]
[BlackFideId "25827138"]
[WhiteElo "2464"]
[BlackElo "2167"]
[Result "1/2-1/2"]
[Round "03"]
[TimeControl "180+1"]
[Date "2022.10.19"]
[WhiteClock "0:00:13"]
[BlackClock "0:00:06"]

1. f4 {[%clk 0:02:58]}  Nh6 {[%clk 0:02:58]} 2. e4 {[%clk 0:02:57]}  d5 {[%clk 0:02:56]} 3. e5 {[%clk 0:02:57]}  c5 {[%clk 0:02:52]} 4. Nf3 {[%clk 0:02:57]}  Nc6 {[%clk 0:02:52]} 5. c3 {[%clk 0:02:57]}  Bg4 {[%clk 0:02:49]} 6. h3 {[%clk 0:02:57]}  Bxf3 {[%clk 0:02:49]} 7. Qxf3 {[%clk 0:02:58]}  e6 {[%clk 0:02:49]} 8. Be2 {[%clk 0:02:54]}  Nf5 {[%clk 0:02:48]} 9. O-O {[%clk 0:02:48]}  Be7 {[%clk 0:02:45]} 10. g4 {[%clk 0:02:41]}  Nh4 {[%clk 0:02:42]} 11. Qg3 {[%clk 0:02:41]}  f5 {[%clk 0:02:33]} 12. Na3 {[%clk 0:02:34]}  O-O {[%clk 0:02:32]} 13. d3 {[%clk 0:02:27]}  Kh8 {[%clk 0:02:30]} 14. Be3 {[%clk 0:02:18]}  d4 {[%clk 0:02:23]} 15. Bf2 {[%clk 0:02:18]}  fxg4 {[%clk 0:02:16]} 16. Bxg4 {[%clk 0:02:08]}  Nf5 {[%clk 0:01:59]} 17. Qg2 {[%clk 0:02:05]}  Bh4 {[%clk 0:01:50]} 18. Qe4 {[%clk 0:01:36]}  Bxf2+ {[%clk 0:01:37]} 19. Rxf2 {[%clk 0:01:37]}  Qh4 {[%clk 0:01:36]} 20. Re1 {[%clk 0:01:29]}  h5 {[%clk 0:01:24]} 21. Bxf5 {[%clk 0:01:20]}  Rxf5 {[%clk 0:01:25]} 22. Nc4 {[%clk 0:01:16]}  Raf8 {[%clk 0:01:21]} 23. Ref1 {[%clk 0:01:15]}  Qxh3 {[%clk 0:01:14]} 24. Nd6 {[%clk 0:01:02]}  dxc3 {[%clk 0:00:27]} 25. bxc3 {[%clk 0:01:01]}  Ne7 {[%clk 0:00:21]} 26. Nxf5 {[%clk 0:00:59]}  Nxf5 {[%clk 0:00:19]} 27. Rh2 {[%clk 0:00:59]}  Qxf1+ {[%clk 0:00:19]} 28. Kxf1 {[%clk 0:00:46]}  Ng3+ {[%clk 0:00:20]} 29. Kf2 {[%clk 0:00:37]}  Nxe4+ {[%clk 0:00:21]} 30. dxe4 {[%clk 0:00:37]}  Rxf4+ {[%clk 0:00:21]} 31. Ke3 {[%clk 0:00:38]}  Rg4 {[%clk 0:00:15]} 32. Rxh5+ {[%clk 0:00:39]}  Kg8 {[%clk 0:00:15]} 33. Kd3 {[%clk 0:00:30]}  Rg2 {[%clk 0:00:14]} 34. Kc4 {[%clk 0:00:26]}  b6 {[%clk 0:00:14]} 35. a4 {[%clk 0:00:26]}  Ra2 {[%clk 0:00:11]} 36. Kb5 {[%clk 0:00:25]}  Kf7 {[%clk 0:00:09]} 37. Rh3 {[%clk 0:00:23]}  Re2 {[%clk 0:00:09]} 38. Rd3 {[%clk 0:00:20]}  Ke7 {[%clk 0:00:07]} 39. Rg3 {[%clk 0:00:21]}  Kf7 {[%clk 0:00:06]} 40. Rf3+ {[%clk 0:00:21]}  Ke8 {[%clk 0:00:06]} 41. Rg3 {[%clk 0:00:20]}  Kf7 {[%clk 0:00:02]} 42. Rg4 {[%clk 0:00:20]}  Re3 {[%clk 0:00:02]} 43. c4 {[%clk 0:00:20]}  Rb3+ {[%clk 0:00:02]} 44. Kc6 {[%clk 0:00:21]}  Rb4 {[%clk 0:00:03]} 45. Rf4+ {[%clk 0:00:20]}  Ke7 {[%clk 0:00:02]} 46. Rg4 {[%clk 0:00:20]}  Rxc4 {[%clk 0:00:03]} 47. Rxg7+ {[%clk 0:00:21]}  Kf8 {[%clk 0:00:04]} 48. Rxa7 {[%clk 0:00:21]}  Rxe4 {[%clk 0:00:05]} 49. Kd6 {[%clk 0:00:20]}  c4 {[%clk 0:00:05]} 50. Kxe6 {[%clk 0:00:21]}  c3 {[%clk 0:00:06]} 51. Rc7 {[%clk 0:00:19]}  Rxa4 {[%clk 0:00:05]} 52. Rxc3 {[%clk 0:00:18]}  Rh4 {[%clk 0:00:05]} 53. Rc8+ {[%clk 0:00:17]}  Kg7 {[%clk 0:00:05]} 54. Rc7+ {[%clk 0:00:13]}  Kf8 {[%clk 0:00:04]} 55. Kf6 {[%clk 0:00:12]}  Rh6+ {[%clk 0:00:03]} 56. Kg5 {[%clk 0:00:12]}  Re6 {[%clk 0:00:03]} 57. Kf5 {[%clk 0:00:12]}  Rh6 {[%clk 0:00:04]} 58. e6 {[%clk 0:00:12]}  Rh1 {[%clk 0:00:03]} 59. Rf7+ {[%clk 0:00:10]}  Ke8 {[%clk 0:00:04]} 60. Rb7 {[%clk 0:00:11]}  Rf1+ {[%clk 0:00:03]} 61. Ke5 {[%clk 0:00:12]}  Re1+ {[%clk 0:00:04]} 62. Kd6 {[%clk 0:00:12]}  Rd1+ {[%clk 0:00:05]} 63. Kc6 {[%clk 0:00:13]}  Re1 {[%clk 0:00:05]} 64. Kd5 {[%clk 0:00:12]}  Rd1+ {[%clk 0:00:05]} 65. Ke4 {[%clk 0:00:13]}  Re1+ {[%clk 0:00:06]} 66. Kf5 {[%clk 0:00:14]}  Rf1+ {[%clk 0:00:06]} 67. Kg4 {[%clk 0:00:14]}  Re1 {[%clk 0:00:07]} 68. Kf5 {[%clk 0:00:13]}  Rf1+ {[%clk 0:00:06]} 1/2-1/2


[Site "https://www.chess.com"]

[Event "Titled Tuesday Blitz October 18 Late 2022"]
[White "Mortazavi, Ali"]
[Black "Ankerst, Mihael"]
[WhiteFideId "401323"]
[BlackFideId "14602369"]
[WhiteElo "2339"]
[BlackElo "2295"]
[Result "1-0"]
[Round "03"]
[TimeControl "180+1"]
[Date "2022.10.19"]
[WhiteClock "0:00:29"]
[BlackClock "0:00:11"]

1. e4 {[%clk 0:02:59]}  c5 {[%clk 0:02:58]} 2. Nc3 {[%clk 0:02:59]}  Nc6 {[%clk 0:02:54]} 3. f4 {[%clk 0:02:59]}  e6 {[%clk 0:02:54]} 4. Nf3 {[%clk 0:03:00]}  d5 {[%clk 0:02:53]} 5. Bb5 {[%clk 0:03:00]}  Nf6 {[%clk 0:02:54]} 6. Qe2 {[%clk 0:02:29]}  Be7 {[%clk 0:02:53]} 7. Bxc6+ {[%clk 0:02:02]}  bxc6 {[%clk 0:02:51]} 8. O-O {[%clk 0:02:00]}  O-O {[%clk 0:02:51]} 9. b3 {[%clk 0:01:52]}  Qc7 {[%clk 0:02:51]} 10. d3 {[%clk 0:01:50]}  Rd8 {[%clk 0:02:51]} 11. Na4 {[%clk 0:01:40]}  c4 {[%clk 0:02:51]} 12. e5 {[%clk 0:01:31]}  Nd7 {[%clk 0:02:50]} 13. dxc4 {[%clk 0:01:26]}  Ba6 {[%clk 0:02:49]} 14. Nb2 {[%clk 0:01:17]}  Nb6 {[%clk 0:02:38]} 15. Be3 {[%clk 0:01:15]}  Ba3 {[%clk 0:02:21]} 16. c3 {[%clk 0:00:58]}  Bxb2 {[%clk 0:02:02]} 17. Qxb2 {[%clk 0:00:58]}  dxc4 {[%clk 0:02:03]} 18. b4 {[%clk 0:00:59]}  Nd5 {[%clk 0:02:03]} 19. Bc5 {[%clk 0:00:54]}  Nxf4 {[%clk 0:02:02]} 20. Bd6 {[%clk 0:00:53]}  Qb6+ {[%clk 0:02:01]} 21. Kh1 {[%clk 0:00:52]}  Rd7 {[%clk 0:01:20]} 22. Ng5 {[%clk 0:00:49]}  Nd3 {[%clk 0:01:17]} 23. Qe2 {[%clk 0:00:49]}  c5 {[%clk 0:01:08]} 24. Qe4 {[%clk 0:00:49]}  g6 {[%clk 0:00:27]} 25. Qxa8+ {[%clk 0:00:48]}  Rd8 {[%clk 0:00:27]} 26. Qf3 {[%clk 0:00:47]}  Rd7 {[%clk 0:00:22]} 27. Nxf7 {[%clk 0:00:42]}  Kg7 {[%clk 0:00:22]} 28. Nh6 {[%clk 0:00:35]}  Kxh6 {[%clk 0:00:21]} 29. Bf8+ {[%clk 0:00:35]}  Kg5 {[%clk 0:00:17]} 30. Qf6+ {[%clk 0:00:34]}  Kh5 {[%clk 0:00:16]} 31. g4+ {[%clk 0:00:31]}  Kxg4 {[%clk 0:00:15]} 32. Rg1+ {[%clk 0:00:31]}  Kh5 {[%clk 0:00:11]} 33. Qg5# {[%clk 0:00:29]} 1-0


[Site "https://www.chess.com"]

[Event "Titled Tuesday Blitz October 18 Late 2022"]
[White "Omariev, Maksim"]
[Black "Domingo Nunez, Ruben"]
[WhiteFideId "4193423"]
[BlackFideId "22245570"]
[WhiteElo "2438"]
[BlackElo "2406"]
[Result "0-1"]
[Round "03"]
[TimeControl "180+1"]
[Date "2022.10.19"]
[WhiteClock "0:00:02"]
[BlackClock "0:00:18"]

1. g4 {[%clk 0:02:58]}  d5 {[%clk 0:02:58]} 2. Bg2 {[%clk 0:02:57]}  c6 {[%clk 0:02:58]} 3. h3 {[%clk 0:02:57]}  e5 {[%clk 0:02:52]} 4. d4 {[%clk 0:02:57]}  h5 {[%clk 0:02:52]} 5. dxe5 {[%clk 0:02:49]}  hxg4 {[%clk 0:02:52]} 6. hxg4 {[%clk 0:02:50]}  Rxh1 {[%clk 0:02:53]} 7. Bxh1 {[%clk 0:02:50]}  Qh4 {[%clk 0:02:52]} 8. Bg2 {[%clk 0:02:41]}  Bxg4 {[%clk 0:02:29]} 9. Qd4 {[%clk 0:02:17]}  Nh6 {[%clk 0:02:14]} 10. Nf3 {[%clk 0:02:11]}  Qh5 {[%clk 0:02:11]} 11. Bf4 {[%clk 0:02:04]}  Nd7 {[%clk 0:02:07]} 12. Nbd2 {[%clk 0:01:48]}  Nc5 {[%clk 0:01:50]} 13. Bxh6 {[%clk 0:01:17]}  gxh6 {[%clk 0:01:19]} 14. O-O-O {[%clk 0:01:08]}  Ne6 {[%clk 0:01:14]} 15. Qa4 {[%clk 0:01:04]}  Bc5 {[%clk 0:01:07]} 16. Rh1 {[%clk 0:00:20]}  Qg6 {[%clk 0:01:06]} 17. e3 {[%clk 0:00:17]}  O-O-O {[%clk 0:00:57]} 18. Nh4 {[%clk 0:00:16]}  Qg7 {[%clk 0:00:50]} 19. Ndf3 {[%clk 0:00:13]}  Kb8 {[%clk 0:00:35]} 20. Rg1 {[%clk 0:00:12]}  h5 {[%clk 0:00:35]} 21. Bh3 {[%clk 0:00:11]}  Rg8 {[%clk 0:00:28]} 22. Nh2 {[%clk 0:00:07]}  Qxe5 {[%clk 0:00:27]} 23. Nxg4 {[%clk 0:00:05]}  hxg4 {[%clk 0:00:26]} 24. Rxg4 {[%clk 0:00:06]}  Rh8 {[%clk 0:00:25]} 25. Nf3 {[%clk 0:00:03]}  Qf6 {[%clk 0:00:18]} 26. Rg3 {[%clk 0:00:02]}  Bd6 {[%clk 0:00:18]} 27. Bxe6 {[%clk 0:00:02]}  fxe6 {[%clk 0:00:18]} 0-1


[Site "https://www.chess.com"]